bitfinex/quotes_ETHUSD_20220305
["timestamp","ask_amount","ask_price","bid_price","bid_amount"]
[1646452083806,4.49288588,2631.5,2631.4,0.00239085]
[1646452084007,4.49288588,2631.5,2631.1,0.25]
[1646452084008,2.0,2631.4,2631.1,0.25]
[1646452084208,3.5,2631.3,2630.8,1.1899]
[1646452085058,3.5,2631.3,2630.3,1.2]
[1646452085260,4.19900946,2631.3,2630.9,0.00239279]
[1646452085660,3.5,2631.3,2630.9,0.00239279]
[1646452086059,4.45115,2631.3,2630.9,0.00239279]
[1646452086259,2.0,2631.2,2630.3,1.2]
[1646452086459,4.71319319,2631.1,2631.0,0.00239278]
[1646452086663,3.5,2631.1,2631.0,0.00239278]
[1646452086860,3.47919561,2631.1,2631.0,0.00239278]
[1646452087660,3.47919561,2631.1,2630.9,0.00239279]
[1646452088702,3.47919561,2631.1,2630.4,1.01761933]
[1646452088903,3.47919561,2631.1,2630.9,0.00239281]
[1646452089905,1.95,2631.2,2630.4,1.01761933]
[1646452090105,1.95,2631.2,2630.9,0.00239071]
[1646452090508,3.8,2631.1,2630.9,0.00239071]
[1646452091108,3.8,2631.1,2630.8,1.15674437]
[1646452091307,3.8,2631.1,2630.9,0.00239071]
[1646452092354,3.8,2631.1,2630.8,1.15674437]
[1646452092554,3.8,2631.1,2630.9,0.00239071]
[1646452093456,3.8,2631.1,2630.8,1.15674437]
[1646452093657,3.8,2631.1,2630.9,0.00239109]
[1646452094661,3.8,2631.1,2630.2,4.5]
[1646452095062,3.8,2631.1,2630.9,0.00239109]
[1646452095901,3.8,2631.1,2630.2,4.5]
[1646452097108,0.00067171,2630.8,2630.2,2.00417873]
[1646452097408,0.00067171,2630.8,2630.2,1.00417873]
[1646452098812,0.00067171,2630.8,2630.2,1.00258544]
[1646452099410,0.00067171,2630.8,2630.1,1.2338]
[1646452100456,0.00067171,2630.8,2630.4,1.06454256]
[1646452101859,0.00067171,2630.8,2630.5,0.55010295]
[1646452102060,0.00067171,2630.8,2630.4,1.06454256]
[1646452102364,0.00067171,2630.8,2630.5,0.00277804]
[1646452103159,0.00067171,2630.8,2630.4,1.06454256]
[1646452103408,0.00067171,2630.8,2630.1,1.2338]
[1646452103609,0.00067171,2630.8,2630.5,0.00277802]
[1646452104309,0.00067171,2630.8,2630.1,1.2338]
[1646452104509,0.00067171,2630.8,2630.5,0.00277802]
[1646452105513,0.00067171,2630.8,2630.1,1.2338]
[1646452105713,0.00067171,2630.8,2630.5,0.00268426]
[1646452106615,0.00067171,2630.8,2630.3,0.91017534]
[1646452107053,0.00067171,2630.8,2630.5,0.00268426]
[1646452107953,0.00067171,2630.8,2630.3,0.91017534]
[1646452108253,0.00067171,2630.8,2630.5,0.00268426]
[1646452109054,0.00067171,2630.8,2630.4,3.8821]
[1646452109252,0.00067171,2630.8,2630.5,0.54955175]
[1646452109455,0.00067171,2630.8,2630.6,3.5]
[1646452109657,0.00067171,2630.8,2630.7,0.95866112]
[1646452111504,0.00067171,2630.8,2630.4,2.2104]
[1646452111705,0.00067171,2630.8,2630.6,0.00259983]
[1646452112709,0.00067171,2630.8,2630.4,2.28936698]
[1646452112907,0.00067171,2630.8,2630.6,0.00260124]
[1646452113907,0.00067171,2630.8,2630.4,2.28936698]
[1646452114207,0.00067171,2630.8,2630.6,0.00260124]
[1646452115057,0.00067171,2630.8,2630.4,2.28936698]
[1646452115457,0.00067171,2630.8,2630.6,0.00260124]
[1646452116458,0.00067171,2630.8,2630.5,0.55032159]
[1646452116660,0.00067171,2630.8,2630.6,0.00260104]
[1646452117460,0.00067171,2630.8,2630.5,0.55085756]
[1646452117863,0.00067171,2630.8,2630.6,0.00260104]
[1646452118325,0.00073201,2630.5,2629.9,1.1866]
[1646452118511,0.00073201,2630.5,2630.0,0.54279796]
[1646452118910,1.95033201,2630.5,2630.0,0.54279796]
[1646452119111,0.99013759,2630.4,2630.0,0.54279796]
[1646452119311,0.99013759,2630.4,2629.9,1.1866]
[1646452119513,0.99013759,2630.4,2630.0,0.54342885]
[1646452120114,0.99013759,2630.4,2629.7,0.25]
[1646452120315,1.78183759,2630.4,2630.1,0.00260317]
[1646452120519,0.99013759,2630.3,2630.1,0.00260317]
[1646452121215,0.99013759,2630.3,2629.6,0.54336946]
[1646452121515,0.99013759,2630.2,2630.1,0.00260317]
[1646452121714,0.99013759,2630.4,2630.1,0.00260317]
[1646452121915,3.8,2630.2,2630.1,0.00260317]
[1646452122153,4.79013759,2630.2,2630.1,0.00260317]
[1646452122353,4.79013759,2630.2,2630.0,0.54332255]
[1646452122555,3.8,2630.2,2630.0,0.54332255]
[1646452122753,3.8,2630.2,2630.0,0.54592573]
[1646452123563,3.8,2630.2,2630.0,0.54332255]
[1646452123755,1.03381744,2630.1,2630.0,0.54592176]
[1646452124758,1.03381744,2630.1,2630.0,0.54332255]
[1646452126210,1.94171744,2630.1,2630.0,0.54332255]
[1646452126511,1.94171744,2630.1,2630.0,0.51310539]
[1646452126710,1.94171744,2630.1,2629.9,0.00259922]
[1646452126910,1.03381744,2630.0,2629.9,0.00259922]
[1646452127307,1.03381744,2630.0,2629.4,0.50620664]
[1646452127507,1.03381744,2630.0,2629.2,0.95826082]
[1646452127508,1.03381744,2630.0,2629.9,0.00259982]
[1646452128511,1.03381744,2630.0,2629.5,0.50623681]
[1646452128710,1.03381744,2630.0,2629.8,0.00255142]
[1646452129210,0.00212619,2629.9,2629.8,0.00255142]
[1646452129662,0.00212619,2629.9,2629.3,0.50598403]
[1646452129864,0.00212619,2629.9,2629.7,0.00255145]
[1646452130665,1.03594363,2629.9,2629.7,0.00255145]
[1646452130877,1.03594363,2629.9,2629.3,0.50598403]
[1646452131072,1.03594363,2629.9,2629.7,0.00255301]
[1646452131073,8.0367856,2629.9,2629.7,0.00255301]
[1646452131269,1.03381744,2629.8,2629.7,0.00255301]
[1646452131869,1.04001695,2629.8,2629.7,0.00255301]
[1646452132068,7.00296816,2629.9,2629.5,0.5055133]
[1646452132268,7.00296816,2629.9,2629.6,0.50788255]
[1646452132468,0.00212619,2629.7,2629.6,0.00236925]
[1646452132869,0.00212619,2629.7,2629.2,0.95826082]
[1646452133070,6.61286816,2629.7,2629.2,0.95826082]
[1646452133909,4.96090297,2629.6,2629.2,0.95826082]
[1646452135513,0.00212619,2629.5,2629.2,0.95826082]
[1646452135813,0.00212619,2629.5,2629.3,0.00260931]
[1646452136813,0.00212619,2629.5,2629.2,0.95826082]
[1646452138161,0.00212619,2629.5,2629.1,1.33129997]
[1646452138362,3.29922937,2629.6,2629.2,0.00259878]
[1646452139162,3.29922937,2629.6,2629.1,1.1931]
[1646452139562,3.29922937,2629.6,2629.3,0.00259877]
[1646452140363,3.29922937,2629.6,2629.1,1.1931]
[1646452140819,3.29922937,2629.6,2629.3,0.00259876]
[1646452141618,3.29922937,2629.6,2629.1,1.1931]
[1646452142018,3.29922937,2629.6,2629.3,0.00266201]
[1646452142819,3.29922937,2629.6,2629.1,1.1931]
[1646452143218,7.09922937,2629.6,2629.3,0.00266201]
[1646452144019,7.09922937,2629.6,2629.1,1.1931]
[1646452144418,7.09922937,2629.6,2629.3,0.00265863]
[1646452145265,7.09922937,2629.6,2629.1,1.1931]
[1646452145466,7.09922937,2629.6,2629.3,0.00258688]
[1646452146167,7.09922937,2629.6,2629.4,1.08350439]
[1646452146372,7.09922937,2629.6,2629.5,3.5]
[1646452146373,3.8,2629.6,2629.5,3.5]
[1646452146767,4.84126904,2629.7,2629.6,5.0821]
[1646452146965,4.84126904,2629.7,2629.6,8.5821]
[1646452147166,4.84126904,2629.7,2629.6,9.5821]
[1646452147366,0.00073201,2630.5,2629.6,9.5821]
[1646452148414,0.00073201,2630.5,2629.6,9.2]
[1646452148614,0.00073201,2630.5,2629.6,5.7]
[1646452149214,0.00073201,2630.5,2630.0,1.04560682]
[1646452151419,0.00073201,2630.5,2630.4,1.08109769]
[1646452152463,1.40073201,2630.5,2630.4,1.08109769]
[1646452152860,1.40073201,2630.5,2630.4,1.51529503]
[1646452154460,1.40073201,2630.5,2630.4,1.08109769]
[1646452154665,2.51167541,2630.5,2630.4,1.08109769]
[1646452155265,2.51167541,2630.5,2629.9,4.5]
[1646452155465,1.1109434,2630.4,2630.0,0.43428662]
[1646452156315,1.1109434,2630.4,2630.1,4.45303393]
[1646452156515,1.40073201,2630.5,2630.2,0.43428662]
[1646452158918,1.11187161,2630.4,2630.2,0.43428662]
[1646452159116,1.40073201,2630.5,2630.2,0.43428662]
[1646452159317,1.40073201,2630.5,2630.4,0.62911254]
[1646452159564,2.5125858,2630.5,2630.4,1.06339916]
[1646452160165,1.40073201,2630.5,2630.4,1.06339916]
[1646452161165,2.51289711,2630.5,2630.4,1.06339916]
[1646452161863,2.51289711,2630.5,2630.4,0.62911254]
[1646452162768,2.51289711,2630.5,2630.4,1.06382951]
[1646452167059,2.51190141,2630.5,2630.4,0.62911254]
[1646452167461,2.51190141,2630.5,2630.4,1.05682959]
[1646452168265,2.51190141,2630.5,2630.4,0.62911254]
[1646452171312,2.51190141,2630.5,2630.4,1.0568309]
[1646452171713,2.51190141,2630.5,2630.4,0.62911254]
[1646452175768,2.46190141,2630.5,2630.4,0.62911254]
[1646452178171,5.96190141,2630.5,2630.4,0.62911254]
[1646452178818,6.66091087,2630.5,2630.4,0.62911254]
[1646452179322,3.16091087,2630.5,2630.4,0.62911254]
[1646452179520,2.46190141,2630.5,2630.4,0.62911254]
[1646452182658,5.96190141,2630.5,2630.4,0.62911254]
[1646452183059,4.6121651,2630.5,2630.4,0.62911254]
[1646452183663,1.1121651,2630.5,2630.4,0.62911254]
[1646452183859,5.31117456,2630.5,2630.4,0.62911254]
[1646452184060,1.1121651,2630.5,2630.4,0.62911254]
[1646452184260,4.6121651,2630.5,2630.4,0.62911254]
[1646452184459,1.1121651,2630.5,2630.4,0.62911254]
[1646452184663,4.6121651,2630.5,2630.4,0.62911254]
[1646452185370,5.31117456,2630.5,2630.4,0.62911254]
[1646452185567,1.81117456,2630.5,2630.4,0.62911254]
[1646452185822,5.31117456,2630.5,2630.4,0.62911254]
[1646452186014,1.1121651,2630.5,2630.4,0.62911254]
[1646452190667,1.81117456,2630.5,2630.4,0.62911254]
[1646452190867,5.31117456,2630.5,2630.4,0.62911254]
[1646452191567,1.81207607,2630.5,2630.4,0.62911254]
[1646452192070,5.31207607,2630.5,2630.4,0.62911254]
[1646452192270,1.81207607,2630.5,2630.4,0.62911254]
[1646452192470,4.6121651,2630.5,2630.4,0.62911254]
[1646452193073,5.9121651,2630.5,2630.4,0.62911254]
[1646452193316,6.61199077,2630.5,2630.4,0.62911254]
[1646452193911,3.11199077,2630.5,2630.4,0.62911254]
[1646452194111,2.4121651,2630.5,2630.4,0.62911254]
[1646452195916,3.11188717,2630.5,2630.4,0.62911254]
[1646452196215,2.4121651,2630.5,2630.4,0.62911254]
[1646452197663,2.4121651,2630.5,2630.4,1.04816647]
[1646452199771,1.3,2630.5,2630.4,1.04816647]
[1646452199971,2.43210359,2630.5,2630.4,1.04816647]
[1646452201413,2.43210359,2630.5,2630.4,1.04810992]
[1646452201611,2.43210359,2630.5,2630.4,0.62911254]
[1646452201812,2.43210359,2630.5,2630.4,1.04810307]
[1646452202015,2.43210359,2630.5,2630.4,0.62911254]
[1646452202218,2.43210359,2630.5,2630.4,1.04810175]
[1646452202418,2.43210359,2630.5,2630.4,0.62911254]
[1646452202620,2.43210359,2630.5,2630.4,1.04816709]
[1646452202818,2.43210359,2630.5,2630.4,0.62911254]
[1646452203020,2.43210359,2630.5,2630.4,1.04814716]
[1646452203220,2.43210359,2630.5,2630.4,1.0481714]
[1646452203424,2.43210359,2630.5,2630.4,0.62911254]
[1646452204021,2.43210359,2630.5,2630.4,1.0481795]
[1646452204221,2.43210359,2630.5,2630.4,0.62752425]
[1646452205870,3.13182566,2630.5,2630.4,0.62752425]
[1646452208317,2.43210359,2630.5,2630.4,0.62752425]
[1646452209414,3.13215482,2630.5,2630.4,0.62752425]
[1646452210219,2.43210359,2630.5,2630.4,0.62752425]
[1646452212668,2.43210359,2630.5,2630.4,1.04727001]
[1646452212869,2.43210359,2630.5,2630.4,1.99125034]
[1646452215273,2.43210359,2630.5,2630.4,1.04727001]
[1646452215912,3.13215482,2630.5,2630.4,0.62752425]
[1646452216516,2.43210359,2630.5,2630.4,0.62752425]
[1646452216718,3.13215482,2630.5,2630.4,0.62752425]
[1646452217518,2.43210359,2630.5,2630.4,0.62752425]
[1646452218321,5.31387089,2630.5,2630.4,0.62752425]
[1646452218720,5.31387089,2630.5,2629.3,1.3879]
[1646452218721,0.92897537,2629.7,2629.3,1.3879]
[1646452218924,1.13210359,2629.6,2629.5,0.00238254]
[1646452219319,1.13210359,2629.6,2629.5,0.39365125]
[1646452219772,1.83262402,2629.9,2629.5,0.39126871]
[1646452219971,1.83262402,2629.9,2629.6,0.39126871]
[1646452220173,1.83262402,2629.9,2629.4,0.00238204]
[1646452220971,1.83262402,2629.9,2629.3,0.38229527]
[1646452221372,1.83262402,2629.9,2629.5,0.002378]
[1646452221972,2.78421402,2629.9,2629.5,0.002378]
[1646452222272,1.13210359,2629.8,2629.2,0.38229527]
[1646452222474,1.13210359,2629.8,2629.5,0.00237822]
[1646452223318,1.10870359,2629.8,2629.5,0.00237822]
[1646452223517,1.10870359,2629.8,2629.2,0.38229527]
[1646452223715,1.10870359,2629.8,2629.5,0.00237819]
[1646452224319,0.00119944,2629.4,2629.2,0.38229527]
[1646452226319,0.00119944,2629.4,2629.2,3.88229527]
[1646452226522,0.00119944,2629.4,2629.2,3.5]
[1646452227362,0.00119944,2629.4,2629.2,4.5]
[1646452228164,0.00119944,2629.4,2629.2,4.45]
[1646452228366,0.00119944,2629.4,2629.2,4.45260445]
[1646452228567,0.00119944,2629.4,2629.2,1.00260445]
[1646452228770,0.00119944,2629.4,2629.2,3.50260445]
[1646452228969,0.00119944,2629.4,2629.2,4.50260445]
[1646452229374,0.00119944,2629.4,2629.3,3.5]
[1646452229973,0.00119944,2629.4,2629.3,4.5]
[1646452230817,0.00119944,2629.4,2629.3,4.8821]
[1646452231422,0.00119944,2629.4,2629.3,6.128]
[1646452234022,0.00119944,2629.4,2629.3,4.8821]
[1646452235668,0.00119944,2629.4,2629.3,4.5]
[1646452236066,0.00119944,2629.4,2629.3,1.0]
[1646452236268,0.00119944,2629.4,2629.2,0.00257748]
[1646452236668,0.00119944,2629.4,2629.0,0.99070975]
[1646452237066,0.00119944,2629.4,2629.2,0.00259786]
[1646452237968,0.00119944,2629.4,2629.0,0.99070975]
[1646452238169,0.00119944,2629.4,2629.2,0.00259786]
[1646452239123,0.00119944,2629.4,2629.0,0.99070975]
[1646452239322,0.00119944,2629.4,2629.2,0.002596]
[1646452240328,0.00119944,2629.4,2628.9,1.0032465]
[1646452240527,0.00119944,2629.4,2629.2,0.002596]
[1646452241429,0.00119944,2629.4,2629.1,1.01516278]
[1646452241827,0.00119944,2629.4,2629.2,0.002596]
[1646452242864,0.00119944,2629.4,2628.9,0.0032465]
[1646452243065,0.00119944,2629.4,2629.2,0.002596]
[1646452243266,1.19232675,2629.4,2629.2,0.002596]
[1646452243871,1.19232675,2629.4,2629.0,0.35743707]
[1646452244069,1.19232675,2629.4,2629.1,0.35743707]
[1646452244270,1.19232675,2629.4,2629.2,0.00237427]
[1646452245074,1.19232675,2629.4,2628.9,0.35742992]
[1646452245272,1.19232675,2629.4,2629.2,0.00237427]
[1646452246316,1.19232675,2629.4,2628.9,0.35742992]
[1646452246516,1.19232675,2629.4,2629.2,0.00237427]
[1646452246919,0.00119944,2629.4,2629.2,0.00237427]
[1646452247316,0.00119944,2629.4,2629.2,0.87911026]
[1646452247517,0.00119944,2629.4,2629.3,0.35742992]
[1646452248418,0.00119944,2629.4,2629.3,3.85742992]
[1646452248625,0.00119944,2629.4,2629.3,4.94252992]
[1646452248830,0.00119944,2629.4,2629.3,6.32462992]
[1646452249027,1.9496,2630.4,2629.5,4.7]
[1646452249228,1.9496,2630.4,2629.6,4.80847222]
[1646452249229,1.19119043,2630.3,2629.6,4.80847222]
[1646452249427,1.19119043,2630.3,2629.7,0.35742992]
[1646452250277,1.19119043,2630.3,2630.0,1.12491061]
[1646452250475,1.19119043,2630.3,2630.1,0.35742992]
[1646452250675,1.19119043,2630.3,2629.6,1.0]
[1646452250875,1.19119043,2630.3,2629.7,0.35720808]
[1646452251075,1.19119043,2630.3,2629.8,0.35720808]
[1646452251274,1.19119043,2630.3,2629.4,4.9506]
[1646452251474,1.19119043,2630.3,2629.5,0.35728311]
[1646452251773,1.19119043,2630.3,2629.7,1.12657664]
[1646452251973,1.19119043,2630.3,2629.8,0.30728311]
[1646452253176,1.19119043,2630.3,2629.8,3.80728311]
[1646452253418,1.19119043,2630.3,2630.1,1.20092255]
[1646452254018,1.19119043,2630.3,2629.6,4.5]
[1646452255327,1.19119043,2630.3,2629.9,1.22377607]
[1646452256724,1.19119043,2630.3,2630.0,3.5]
[1646452256923,1.19119043,2630.3,2629.9,1.22377607]
[1646452256924,0.70052043,2630.7,2629.9,1.22377607]
[1646452258268,0.70052043,2630.8,2629.9,1.22377607]
[1646452258467,0.70052043,2630.7,2629.9,1.22377607]
[1646452259073,0.70052043,2630.7,2629.5,4.5]
[1646452259274,0.70052043,2630.6,2629.5,4.5]
[1646452259474,0.70052043,2630.7,2629.5,4.5]
[1646452259875,0.70052043,2630.7,2629.5,3.5]
[1646452260076,1.80004827,2630.6,2629.7,1.04560271]
[1646452260273,1.80004827,2630.6,2629.5,3.5]
[1646452260274,0.70052043,2630.5,2629.5,3.5]
[1646452260479,1.09952784,2630.6,2629.5,3.5]
[1646452260480,0.70052043,2630.4,2629.5,3.5]
[1646452261118,0.70052043,2630.4,2629.4,3.95319648]
[1646452261518,0.70052043,2630.4,2629.7,1.13768141]
[1646452265775,0.70052043,2630.3,2629.7,1.13768141]
[1646452266172,0.70052043,2630.4,2629.7,1.13768141]
[1646452266373,0.70052043,2630.3,2629.7,1.13768141]
[1646452269620,0.70052043,2630.3,2629.4,4.95319708]
[1646452270422,0.70052043,2630.3,2629.4,4.9506]
[1646452270621,0.70052043,2630.3,2629.6,1.14879783]
[1646452272064,0.70052043,2630.3,2629.7,0.3466222]
[1646452274466,1.90457083,2630.3,2629.7,0.3466222]
[1646452274670,1.2040504,2630.2,2629.7,0.3466222]
[1646452274871,1.2040504,2630.1,2629.7,0.3466222]
[1646452275071,1.2040504,2630.0,2629.7,0.3466222]
[1646452275271,1.2040504,2629.9,2629.7,0.3466222]
[1646452275471,1.2040504,2629.8,2629.7,0.3466222]
[1646452276324,0.70052043,2630.3,2629.7,0.3466222]
[1646452276718,1.90457083,2630.3,2629.7,0.3466222]
[1646452276919,1.2040504,2630.2,2629.7,0.3466222]
[1646452277118,1.2040504,2630.1,2629.7,0.3466222]
[1646452277319,1.2040504,2630.0,2629.7,0.3466222]
[1646452277522,1.2040504,2629.9,2629.7,3.8466222]
[1646452277719,0.70052043,2630.4,2629.8,0.3466222]
[1646452279778,1.20410061,2630.3,2629.8,0.3466222]
[1646452279977,1.20410061,2630.2,2629.8,0.3466222]
[1646452280176,1.20410061,2630.1,2629.8,0.3466222]
[1646452280477,0.70052043,2630.5,2630.0,1.11916657]
[1646452281377,1.27704425,2630.6,2630.0,1.11916657]
[1646452281776,0.70052043,2630.5,2629.8,1.1451]
[1646452282377,0.70052043,2630.4,2629.8,1.1451]
[1646452282782,0.70052043,2630.3,2629.8,1.1451]
[1646452283823,0.51867728,2629.7,2629.5,0.91707869]
[1646452284017,0.51867728,2629.7,2629.4,1.00259653]
[1646452284222,0.51867728,2629.7,2629.4,0.00259653]
[1646452284919,0.51867728,2629.7,2629.3,0.19]
[1646452285122,0.51867728,2629.7,2629.4,0.00259619]
[1646452285923,0.51867728,2629.7,2629.3,0.19]
[1646452286422,0.51867728,2629.7,2629.4,0.00259619]
[1646452287269,0.51867728,2629.7,2629.3,0.19]
[1646452287471,0.51867728,2629.7,2629.4,0.00259621]
[1646452288472,0.51867728,2629.7,2629.3,0.19]
[1646452288771,0.51867728,2629.7,2629.4,0.00259621]
[1646452288970,0.04442536,2629.6,2629.4,0.00259621]
[1646452289571,0.04442536,2629.6,2629.3,0.19]
[1646452289775,0.04442536,2629.6,2629.4,0.00259617]
[1646452290835,0.51867728,2629.7,2629.5,4.7]
[1646452291034,0.51867728,2629.7,2629.6,3.8821]
[1646452291323,0.51867728,2629.7,2629.6,1.07474306]
[1646452291522,0.51867728,2629.7,2629.6,2.07474306]
[1646452291723,0.51867728,2629.7,2629.6,4.57474306]
[1646452292120,0.51867728,2629.7,2629.6,5.57474306]
[1646452293523,0.51867728,2629.7,2629.6,5.19264306]
[1646452293725,0.51867728,2629.7,2629.4,4.19504873]
[1646452293924,0.51867728,2629.7,2629.4,0.00240567]
[1646452294777,0.51867728,2629.7,2629.2,5.30640535]
[1646452294977,0.51867728,2629.7,2629.4,0.00260263]
[1646452295778,0.51867728,2629.7,2629.2,5.30640535]
[1646452295980,0.51867728,2629.7,2629.2,1.80640535]
[1646452296281,0.51867728,2629.7,2629.4,0.00260263]
[1646452296982,0.51867728,2629.7,2629.2,2.11376229]
[1646452297184,0.51867728,2629.7,2629.2,1.11376229]
[1646452297582,0.51867728,2629.7,2629.4,0.00259526]
[1646452298321,0.51867728,2629.7,2629.2,6.94700229]
[1646452298524,0.51867728,2629.7,2629.4,0.6950008]
[1646452298727,0.51867728,2629.7,2629.4,4.1950008]
[1646452299126,0.51867728,2629.7,2629.4,4.50235774]
[1646452299527,0.51867728,2629.7,2629.4,4.5]
[1646452299729,0.51867728,2629.7,2629.4,4.50235774]
[1646452300129,0.51867728,2629.7,2629.4,5.1950008]
[1646452300328,0.51867728,2629.7,2629.5,0.36465065]
[1646452300727,1.18843606,2629.6,2629.5,0.36465065]
[1646452301728,1.18843606,2629.6,2629.4,3.86700839]
[1646452301929,1.18843606,2629.6,2629.5,0.36465065]
[1646452302569,1.18843606,2629.6,2629.4,0.00238537]
[1646452303069,1.18843606,2629.6,2629.3,1.05729371]
[1646452303273,1.18843606,2629.6,2629.4,0.00238534]
[1646452303869,0.51867728,2629.7,2629.4,0.00238534]
[1646452304070,1.18881198,2629.6,2629.4,0.00238534]
[1646452304271,1.18881198,2629.6,2629.3,1.05729371]
[1646452304471,1.18881198,2629.6,2629.4,0.00238537]
[1646452305574,1.18881198,2629.6,2629.4,0.00237786]
[1646452306620,1.18881198,2629.6,2629.4,3.5]
[1646452306825,1.18881198,2629.6,2629.5,0.36465065]
[1646452308029,0.51867728,2629.7,2629.5,0.36465065]
[1646452308225,0.51867728,2629.7,2629.6,0.36465065]
[1646452308627,1.70744678,2629.7,2629.4,0.69502095]
[1646452308829,1.70744678,2629.7,2629.5,0.36465065]
[1646452308830,1.18889318,2629.6,2629.5,0.36465065]
[1646452310080,0.98737331,2629.6,2629.5,0.36465065]
[1646452322933,0.98737331,2629.6,2629.4,0.00237829]
[1646452323528,0.98737331,2629.6,2629.1,0.0032465]
[1646452323730,0.98737331,2629.6,2629.4,0.00237842]
[1646452323927,0.0013308,2629.3,2628.9,0.91673938]
[1646452324128,0.0013308,2629.3,2628.9,0.91349288]
[1646452326277,0.0013308,2629.3,2629.0,0.0009578]
[1646452327080,0.0013308,2629.3,2628.9,0.91349288]
[1646452327279,0.0013308,2629.3,2629.0,0.00095778]
[1646452328332,0.0013308,2629.3,2628.9,0.91349288]
[1646452328523,0.0013308,2629.3,2629.0,0.0027719]
[1646452329528,0.0013308,2629.3,2628.9,0.91349288]
[1646452329728,0.0013308,2629.3,2629.0,0.0027719]
[1646452330129,0.0013308,2629.3,2629.0,0.34211613]
[1646452330734,0.0013308,2629.3,2629.0,0.33934423]
[1646452330932,0.0013308,2629.3,2629.0,0.34203297]
[1646452331934,0.0013308,2629.3,2629.0,0.33934423]
[1646452332174,0.0013308,2629.3,2629.0,0.34203297]
[1646452332776,0.0013308,2629.3,2629.0,3.84203297]
[1646452332975,0.0013308,2629.3,2629.1,0.33934423]
[1646452333877,0.0013308,2629.3,2629.1,1.17984423]
[1646452334079,0.0013308,2629.3,2629.2,0.33934423]
[1646452334479,0.0013308,2629.3,2629.2,3.83934423]
[1646452334881,0.0013308,2629.3,2629.2,5.53198729]
[1646452338148,0.0013308,2629.3,2629.2,4.83934423]
[1646452340782,0.0013308,2629.3,2629.2,5.53240515]
[1646452343328,0.0013308,2629.3,2629.2,1.33934423]
[1646452343738,0.0013308,2629.3,2629.2,0.33934423]
[1646452344135,0.0013308,2629.3,2629.1,0.33934423]
[1646452344335,0.0013308,2629.3,2629.2,0.33934423]
[1646452344533,0.0013308,2629.3,2629.1,0.34194031]
[1646452344734,0.0013308,2629.3,2629.2,0.33934423]
[1646452345234,0.0013308,2629.3,2629.1,0.33934423]
[1646452345434,0.0013308,2629.3,2629.2,0.33934423]
[1646452345633,0.0013308,2629.3,2629.1,0.34194071]
[1646452346435,0.0013308,2629.3,2629.1,0.33934423]
[1646452346635,0.0013308,2629.3,2629.1,0.34194072]
[1646452347579,0.0013308,2629.3,2629.1,0.33934423]
[1646452347778,0.0013308,2629.3,2629.1,0.34194072]
[1646452348679,0.0013308,2629.3,2629.1,0.33934423]
[1646452349079,0.0013308,2629.3,2629.1,0.34194066]
[1646452349880,0.0013308,2629.3,2629.1,0.33934423]
[1646452350285,0.0013308,2629.3,2629.1,0.34194066]
[1646452351135,0.0013308,2629.3,2629.1,0.33934423]
[1646452351337,0.0013308,2629.3,2629.1,0.34194066]
[1646452352337,0.0013308,2629.3,2629.1,0.33934423]
[1646452352538,0.0013308,2629.3,2629.1,0.34194067]
[1646452353540,0.0013308,2629.3,2629.1,0.33934423]
[1646452353740,0.0013308,2629.3,2629.1,0.34194067]
[1646452354685,0.00034698,2629.3,2629.1,0.33934423]
[1646452355089,0.00034698,2629.3,2629.1,0.34194067]
[1646452355885,0.00034698,2629.3,2629.1,0.33934423]
[1646452356289,0.00034698,2629.3,2629.1,0.34194067]
[1646452356890,0.00034698,2629.3,2629.1,1.03500159]
[1646452357089,0.00034698,2629.3,2629.1,1.03240515]
[1646452357489,0.00034698,2629.3,2629.1,1.03500159]
[1646452358330,0.00034698,2629.3,2629.1,1.03240515]
[1646452358731,0.00034698,2629.3,2629.1,1.03500159]
[1646452359536,0.00034698,2629.3,2629.1,1.03240515]
[1646452359738,0.00034698,2629.3,2629.1,1.03500159]
[1646452360737,0.00034698,2629.3,2629.1,1.03240515]
[1646452361138,0.00034698,2629.3,2629.1,1.03500159]
[1646452361943,0.00034698,2629.3,2629.1,1.03240515]
[1646452362190,0.00034698,2629.3,2629.1,1.03500159]
[1646452363089,0.00034698,2629.3,2629.1,1.03240515]
[1646452363489,0.00034698,2629.3,2629.1,1.03500159]
[1646452364291,0.00034698,2629.3,2629.1,1.03240515]
[1646452364691,0.00034698,2629.3,2629.1,1.03500159]
[1646452365490,0.00034698,2629.3,2629.1,1.03240515]
[1646452365927,0.00034698,2629.3,2629.2,0.33934423]
[1646452366327,0.00034698,2629.3,2629.1,1.03500159]
[1646452366526,0.00034698,2629.3,2629.2,0.33934423]
[1646452367030,0.00034698,2629.3,2629.1,1.03500159]
[1646452368031,0.00034698,2629.3,2629.2,1.03240515]
[1646452368635,0.00034698,2629.3,2629.2,0.69306092]
[1646452371688,0.00034698,2629.3,2629.2,0.33934423]
[1646452371889,0.00034698,2629.3,2629.1,1.03500158]
[1646452372689,0.00034698,2629.3,2629.1,1.03240515]
[1646452373089,0.00034698,2629.3,2629.1,1.03500159]
[1646452373326,0.00034698,2629.3,2629.2,1.03240515]
[1646452373529,0.00034698,2629.3,2629.2,0.69306092]
[1646452374328,0.00034698,2629.3,2629.1,1.03500158]
[1646452375133,0.00034698,2629.3,2629.1,1.03240515]
[1646452375333,0.00034698,2629.3,2629.2,0.33934423]
[1646452375833,0.00034698,2629.3,2629.1,0.34194067]
[1646452376035,0.00034698,2629.3,2629.2,0.33934423]
[1646452376935,1.21348799,2629.3,2629.2,0.33934423]
[1646452377178,0.00034698,2629.3,2629.2,0.33934423]
[1646452377977,3.50034698,2629.3,2629.2,0.33934423]
[1646452378178,4.71348799,2629.3,2629.2,0.33934423]
[1646452379783,4.71348799,2629.3,2628.6,0.00332581]
[1646452379784,4.25182,2629.1,2628.6,0.00332581]
[1646452379988,4.25182,2629.1,2628.4,0.00332581]
[1646452379989,3.5,2629.0,2628.4,0.00332581]
[1646452380186,0.69999117,2628.9,2628.2,1.20502581]
[1646452380383,4.3986375,2628.8,2628.2,0.00332581]
[1646452380581,4.3986375,2628.8,2628.0,0.00332581]
[1646452380835,3.55605117,2628.9,2628.0,0.00332581]
[1646452381139,4.8,2629.0,2628.1,0.69306092]
[1646452381140,0.3,2629.0,2628.1,0.69306092]
[1646452381338,3.5,2629.0,2628.2,0.00332581]
[1646452381541,4.19999117,2629.0,2628.2,0.00332581]
[1646452381740,4.19999117,2629.0,2627.9,0.00332581]
[1646452381741,0.69999117,2628.9,2627.9,0.00332581]
[1646452381940,0.69999117,2628.8,2628.1,1.01452753]
[1646452382140,0.69999117,2628.8,2628.2,0.00332581]
[1646452382340,0.69999117,2628.9,2627.8,0.69638673]
[1646452382544,0.69999117,2628.9,2627.9,0.69306092]
[1646452382740,0.99999117,2629.0,2628.0,0.00332581]
[1646452383340,0.99999117,2629.0,2628.2,1.05570396]
[1646452383540,0.69999117,2629.0,2628.2,1.05902977]
[1646452383742,4.6259,2629.1,2628.2,1.05902977]